fUST/lending_fUST_20250709
["ID","MTS","AMOUNT","RATE_DAILY","PERIOD"]
[370488549,1752043853340,-151.0,0.00024019,7]
[370488550,1752043853350,-370.55068411,0.00024038,10]
[370488551,1752043853359,-946.73713639,0.00024084,2]
[370488552,1752043853368,-1004.58,0.00024109,2]
[370488553,1752043853378,-460.0,0.00024109,2]
[370488554,1752043853387,-1682.76,0.00024109,2]
[370488555,1752043853396,-480.01,0.00024109,2]
[370488556,1752043853405,-647.6,0.00024109,2]
[370488557,1752043853415,-223.0315306,0.00024117,2]
[370488558,1752043853424,-168.0,0.00024132,2]
[370488559,1752043853434,-168.0,0.00024155,2]
[370488560,1752043853443,-169.0,0.00024164,7]
[370488561,1752043853453,-946.73713639,0.00024184,2]
[370488562,1752043853462,-500.0,0.00024219,2]
[370488563,1752043853472,-4000.0,0.00024225,4]
[370488564,1752043853482,-370.55068411,0.00024245,10]
[370488565,1752043853491,-946.73713639,0.00024284,2]
[370488566,1752043853501,-151.0,0.000243,9]
[370488567,1752043853511,-151.0,0.000243,6]
[370488568,1752043853520,-168.0,0.00024366,2]
[370488569,1752043853529,-1004.58,0.00024383,2]
[370488570,1752043853540,-460.0,0.00024383,2]
[370488571,1752043853553,-1682.76,0.00024383,2]
[370488572,1752043853563,-480.01,0.00024383,2]
[370488573,1752043853573,-647.6,0.00024383,2]
[370488574,1752043853584,-946.73713639,0.00024384,2]
[370488575,1752043853593,-1033.9963892,0.0002439,2]
[370488576,1752043853603,-7179.38,0.000244,7]
[370488577,1752043853613,-62808.86,0.000244,7]
[370488578,1752043853622,-151.0,0.000244,7]
[370488579,1752043853632,-151.0,0.000244,7]
[370488580,1752043853643,-151.0,0.000244,7]
[370488581,1752043853652,-160.0,0.000244,7]
[370488582,1752043853662,-151.0,0.000244,7]
[370488583,1752043853672,-160.0,0.000244,7]
[370488584,1752043853681,-151.936925,0.000244,7]
[370488585,1752043853690,-151.0,0.000244,7]
[370488586,1752043853699,-151.0,0.000244,7]
[370488587,1752043853708,-151.0,0.000244,7]
[370488588,1752043853718,-151.0,0.000244,2]
[370488589,1752043853727,-151.0,0.000244,2]
[370488590,1752043853736,-151.0,0.000244,7]
[370488591,1752043853746,-151.867367,0.000244,7]
[370488592,1752043853755,-151.0,0.000244,7]
[370488593,1752043853764,-151.0,0.000244,7]
[370488594,1752043853774,-2159.643784,0.000244,7]
[370488595,1752043853783,-2159.643784,0.000244,7]
[370488596,1752043853793,-151.0,0.000244,7]
[370488597,1752043853803,-151.0,0.000244,7]
[370488598,1752043853812,-151.0,0.000244,7]
[370488599,1752043853821,-151.0,0.000244,7]
[370488600,1752043853831,-151.0,0.000244,7]
[370488601,1752043853840,-250.248646,0.000244,7]
[370488602,1752043853849,-181.753846,0.000244,7]
[370488603,1752043853858,-209.63948,0.000244,7]
[370488604,1752043853868,-151.0,0.000244,7]
[370488605,1752043853877,-209.63948,0.000244,7]
[370488606,1752043853887,-151.0,0.000244,7]
[370488607,1752043853896,-151.0,0.000244,7]
[370488608,1752043853905,-222.73454,0.000244,7]
[370488609,1752043853915,-222.73454,0.000244,7]
[370488610,1752043853924,-837.99933892,0.000244,7]
[370488611,1752043853934,-230.53906051,0.000244,7]
[370488612,1752043853944,-151.0,0.000244,7]
[370488613,1752043853953,-179.941651,0.000244,7]
[370488614,1752043853964,-151.0,0.00024444,7]
[370488615,1752043853973,-370.55068411,0.00024452,11]
[370488616,1752043853983,-946.73713639,0.00024484,2]
[370488617,1752043853993,-1177.0,0.000245,30]
[370488618,1752043854003,-2099.99,0.000245,7]
[370488619,1752043854013,-6002.68,0.00024546,10]
[370488620,1752043854022,-49548.84982331,0.0002455,10]
[370488621,1752043854147,-194023.78847801,0.0002455,10]
[370488622,1752043854309,-460.0,0.00019178,2]
[370488623,1752043854318,-460.0,0.00019452,2]
[370488624,1752043854328,-460.0,0.00019726,2]
[370488625,1752043854337,-460.0,0.0002,2]
[370488626,1752043854346,-460.0,0.00020273,2]
[370488627,1752043854356,-460.0,0.00020547,2]
[370488628,1752043854365,-460.0,0.00020821,2]
[370488629,1752043854375,-8320.43169868,0.0002455,10]
[370488630,1752043854386,-168.0,0.00024555,2]
[370488631,1752043854396,-997.35250154,0.00024557,2]
[370488632,1752043854406,-211.0,0.0002456,2]
[370488633,1752043854416,-946.73713639,0.00024584,2]
[370488634,1752043854425,-6012.93,0.0002459,10]
[370488635,1752043854434,-997.35250153,0.00024629,2]
[370488636,1752043854443,-151.0,0.00024649,7]
[370488637,1752043854453,-151.0,0.00024649,7]
[370488638,1752043854462,-151.0,0.00024649,7]
[370488639,1752043854471,-255.159875,0.00024649,7]
[370488640,1752043854481,-255.159875,0.00024649,7]
[370488641,1752043854491,-33572.57453799,0.0002465,7]
[370488642,1752043854500,-162.60330377,0.0002465,31]
[370488643,1752043854509,-96884.22122769,0.0002465,2]
[370488644,1752043854740,-460.0,0.00019178,2]
[370488645,1752043854749,-460.0,0.00019178,2]
[370488646,1752043854758,-460.0,0.00019178,2]
[370488647,1752043854768,-460.0,0.00019452,2]
[370488648,1752043854777,-460.0,0.00019726,2]
[370488649,1752043854786,-154.220913,0.00019726,2]
[370488650,1752043854795,-554.06,0.0002,2]
[370488651,1752043854805,-202699.04050605,0.0002465,2]
[370488652,1752043854814,-151.0,0.0002465,7]
[370488653,1752043854824,-151.0,0.0002465,7]
[370488654,1752043854833,-185.924571,0.0002465,7]
[370488655,1752043854843,-151.0,0.0002465,7]
[370488656,1752043854853,-151.0,0.0002465,7]
[370488657,1752043854863,-151.0,0.0002465,7]
[370488658,1752043854873,-151.0,0.0002465,7]
[370488659,1752043854883,-151.0,0.0002465,7]
[370488660,1752043854897,-151.0,0.0002465,7]
[370488661,1752043854915,-181.964364,0.0002465,7]
[370488662,1752043854929,-181.964364,0.0002465,7]
[370488663,1752043854938,-181.964364,0.0002465,7]
[370488664,1752043854948,-181.964364,0.0002465,7]
[370488665,1752043854957,-151.0,0.0002465,7]
[370488666,1752043854967,-151.0,0.0002465,7]
[370488667,1752043854976,-255.159875,0.0002465,7]
[370488668,1752043854985,-255.159875,0.0002465,7]
[370488669,1752043854994,-151.0,0.0002465,7]
[370488670,1752043855004,-151.0,0.0002465,2]
[370488671,1752043855015,-151.0,0.0002465,7]
[370488672,1752043855024,-151.0,0.0002465,7]
[370488673,1752043855034,-151.0,0.0002465,2]
[370488674,1752043855043,-151.0,0.0002465,7]
[370488675,1752043855052,-151.0,0.0002465,7]
[370488676,1752043855062,-151.0,0.0002465,7]
[370488677,1752043855071,-151.0,0.0002465,7]
[370488678,1752043855080,-151.0,0.0002465,7]
[370488679,1752043855089,-269.600316,0.0002465,7]
[370488680,1752043855098,-269.600316,0.0002465,7]
[370488681,1752043855107,-269.600316,0.0002465,7]
[370488682,1752043855116,-269.600316,0.0002465,7]
[370488683,1752043855126,-151.0,0.0002465,7]
[370488684,1752043855135,-151.0,0.0002465,7]
[370488685,1752043855144,-2159.643784,0.0002465,7]
[370488686,1752043855154,-2159.643784,0.0002465,7]
[370488687,1752043855163,-151.0,0.0002465,7]
[370488688,1752043855172,-397.731259,0.0002465,7]
[370488689,1752043855181,-397.731259,0.0002465,7]
[370488690,1752043855190,-397.731259,0.0002465,7]
[370488691,1752043855200,-397.731259,0.0002465,7]
[370488692,1752043855209,-151.0,0.0002465,7]
[370488693,1752043855218,-151.0,0.0002465,7]
[370488694,1752043855228,-151.0,0.0002465,7]
[370488695,1752043855237,-151.0,0.0002465,7]
[370488696,1752043855246,-209.63948,0.0002465,7]
[370488697,1752043855345,-151.0,0.0002465,7]
[370488698,1752043855355,-209.63948,0.0002465,7]
[370488699,1752043855364,-160.975473,0.0002465,7]
[370488700,1752043855373,-151.0,0.0002465,7]
[370488701,1752043855383,-222.73454,0.0002465,7]
[370488702,1752043855392,-222.73454,0.0002465,7]
[370488703,1752043855402,-151.0,0.0002465,7]
[370488704,1752043855411,-76980.98637407,0.00024651,2]
[370488705,1752043855420,-200.0,0.00024657,2]
[370488706,1752043855429,-210.19516238,0.00024657,2]
[370488707,1752043855438,-460.0,0.00024657,2]
[370488708,1752043855448,-1682.76,0.00024657,2]
[370488709,1752043855457,-480.01,0.00024657,2]
[370488710,1752043855466,-647.6,0.00024657,2]
[370488711,1752043855475,-150.0,0.00024658,2]
[370488712,1752043855485,-200.0,0.00024658,15]
[370488713,1752043855494,-380.0,0.00024658,2]
[370488714,1752043855503,-200.0,0.00024658,2]
[370488715,1752043855512,-487.0,0.00024658,2]
[370488716,1752043855521,-370.55068411,0.00024659,11]
[370488717,1752043855530,-500.77678186,0.00024673,2]
[370488718,1752043855540,-518.2937976,0.00024673,2]
[370488719,1752043855549,-617.60633542,0.00024673,2]
[370488720,1752043855559,-500.0,0.00024673,2]
[370488721,1752043855569,-501.42840378,0.00024673,2]
[370488722,1752043855580,-600.0,0.00024673,2]
[370488723,1752043855590,-946.73713639,0.00024684,2]
[370488724,1752043855599,-487.0,0.00024685,2]
[370488725,1752043855609,-37332.92514582,0.0002469,7]
[370488726,1752043855618,-550.37200034,0.0002469,10]
[370488727,1752043855628,-151.0,0.0002469,7]
[370488728,1752043855637,-151.0,0.0002469,7]
[370488729,1752043855647,-151.0,0.0002469,7]
[370488730,1752043855657,-151.0,0.0002469,7]
[370488731,1752043855666,-151.0,0.0002469,7]
[370488732,1752043855676,-255.159875,0.0002469,7]
[370488733,1752043855685,-255.159875,0.0002469,7]
[370488734,1752043855695,-209.63948,0.0002469,7]
[370488735,1752043855705,-151.0,0.0002469,7]
[370488736,1752043855714,-209.63948,0.0002469,7]
[370488737,1752043855723,-151.0,0.0002469,7]
[370488738,1752043855732,-222.73454,0.0002469,7]
[370488739,1752043855741,-222.73454,0.0002469,7]
[370488740,1752043855750,-151.0,0.0002469,7]
[370488741,1752043855760,-2000.0,0.000247,2]
[370488742,1752043855769,-2000.0,0.000247,2]
[370488743,1752043855778,-250.0,0.000247,2]
[370488744,1752043855787,-250.0,0.000247,2]
[370488745,1752043855797,-250.0,0.000247,2]
[370488746,1752043855806,-250.0,0.000247,2]
[370488747,1752043855815,-250.0,0.000247,2]
[370488748,1752043855824,-250.0,0.000247,2]
[370488749,1752043855834,-250.0,0.000247,2]
[370488750,1752043855843,-250.0,0.000247,2]
[370488751,1752043855852,-250.0,0.000247,2]
[370488752,1752043855861,-250.0,0.000247,2]
[370488753,1752043855870,-250.0,0.000247,2]
[370488754,1752043855879,-250.0,0.000247,2]
[370488755,1752043855888,-250.0,0.000247,2]
[370488756,1752043855898,-250.0,0.000247,2]
[370488757,1752043855907,-250.0,0.000247,2]
[370488758,1752043855916,-250.0,0.000247,2]
[370488759,1752043855926,-250.0,0.000247,2]
[370488760,1752043855935,-319.7,0.000247,2]
[370488761,1752043855944,-151.0,0.000247,7]
[370488762,1752043855953,-181.964364,0.000247,7]
[370488763,1752043855962,-181.964364,0.000247,7]
[370488764,1752043855971,-151.0,0.000247,7]
[370488765,1752043855980,-151.0,0.000247,7]
[370488766,1752043855989,-151.0,0.000247,2]
[370488767,1752043855998,-151.0,0.000247,7]
[370488768,1752043856008,-151.0,0.000247,7]
[370488769,1752043856017,-191.996119,0.000247,2]
[370488770,1752043856026,-151.0,0.000247,7]
[370488771,1752043856035,-151.0,0.000247,7]
[370488772,1752043856044,-151.0,0.000247,7]
[370488773,1752043856054,-269.600316,0.000247,7]
[370488774,1752043856063,-269.600316,0.000247,7]
[370488775,1752043856074,-151.0,0.000247,7]
[370488776,1752043856083,-151.0,0.000247,7]
[370488777,1752043856092,-2159.643784,0.000247,7]
[370488778,1752043856102,-2159.643784,0.000247,7]
[370488779,1752043856111,-151.0,0.000247,7]
[370488780,1752043856120,-397.731259,0.000247,7]
[370488781,1752043856130,-397.731259,0.000247,7]
[370488782,1752043856139,-151.0,0.000247,7]
[370488783,1752043856148,-151.0,0.000247,7]
[370488784,1752043856157,-151.0,0.000247,7]
[370488785,1752043856167,-151.0,0.000247,7]
[370488786,1752043856176,-837.99933892,0.000247,7]
[370488787,1752043856186,-230.53906051,0.000247,7]
[370488788,1752043856195,-997.35250153,0.00024701,2]
[370488789,1752043856205,-487.0,0.00024713,2]
[370488790,1752043856214,-487.0,0.0002474,2]
[370488791,1752043856223,-487.0,0.00024768,2]
[370488792,1752043856232,-997.35250153,0.00024774,2]
[370488793,1752043856243,-946.73713639,0.00024784,2]
[370488794,1752043856253,-487.0,0.00024795,2]
[370488795,1752043856262,-221.1144501,0.000248,7]
[370488796,1752043856271,-151.83174,0.000248,7]
[370488797,1752043856280,-151.0,0.000248,7]
[370488798,1752043856289,-151.0,0.000248,7]
[370488799,1752043856299,-151.0,0.000248,7]
[370488800,1752043856308,-151.0,0.000248,2]
[370488801,1752043856317,-151.0,0.000248,7]
[370488802,1752043856326,-151.0,0.000248,7]
[370488803,1752043856335,-151.0,0.000248,7]
[370488804,1752043856344,-151.0,0.000248,7]
[370488805,1752043856353,-151.0,0.000248,7]
[370488806,1752043856363,-269.600316,0.000248,7]
[370488807,1752043856372,-269.600316,0.000248,7]
[370488808,1752043856382,-151.0,0.000248,7]
[370488809,1752043856392,-151.0,0.000248,7]
[370488810,1752043856402,-2159.643784,0.000248,7]
[370488811,1752043856411,-2159.643784,0.000248,7]
[370488812,1752043856420,-397.731259,0.000248,7]
[370488813,1752043856429,-397.731259,0.000248,7]
[370488814,1752043856439,-9793.34544357,0.000248,2]
[370488815,1752043856449,-487.0,0.00024822,2]
[370488816,1752043856458,-168.0,0.00024831,2]
[370488817,1752043856467,-997.35250153,0.00024846,2]
[370488818,1752043856476,-487.0,0.0002485,2]
[370488819,1752043856486,-370.55068411,0.00024866,12]
[370488820,1752043856495,-151.0,0.00024868,7]
[370488821,1752043856505,-487.0,0.00024877,2]
[370488822,1752043856514,-946.73713639,0.00024884,2]
[370488823,1752043856524,-151.0,0.0002489,7]
[370488824,1752043856533,-151.0,0.0002489,7]
[370488825,1752043856543,-151.0,0.0002489,7]
[370488826,1752043856552,-152.611974,0.0002489,7]
[370488827,1752043856563,-157.71418,0.0002489,7]
[370488828,1752043856572,-153.239588,0.0002489,7]
[370488829,1752043856587,-181.964364,0.0002489,7]
[370488830,1752043856598,-181.964364,0.0002489,7]
[370488831,1752043856607,-255.159875,0.0002489,7]
[370488832,1752043856616,-255.159875,0.0002489,7]
[370488833,1752043856627,-200.84977966,0.00024899,2]
[370488834,1752043856636,-151.0,0.000249,7]
[370488835,1752043856645,-196.045603,0.000249,7]
[370488836,1752043856657,-160.446381,0.000249,7]
[370488837,1752043856665,-151.0,0.000249,7]
[370488838,1752043856675,-151.0,0.000249,7]
[370488839,1752043856684,-181.964364,0.000249,7]
[370488840,1752043856694,-181.964364,0.000249,7]
[370488841,1752043856703,-255.159875,0.000249,7]
[370488842,1752043856712,-255.159875,0.000249,7]
[370488843,1752043856721,-151.0,0.000249,7]
[370488844,1752043856730,-151.0,0.000249,2]
[370488845,1752043856739,-151.0,0.000249,7]
[370488846,1752043856748,-151.0,0.000249,7]
[370488847,1752043856757,-151.0,0.000249,7]
[370488848,1752043856766,-151.0,0.000249,7]
[370488849,1752043856774,-151.0,0.000249,7]
[370488850,1752043856784,-269.600316,0.000249,7]
[370488851,1752043856793,-269.600316,0.000249,7]
[370488852,1752043856802,-151.0,0.000249,7]
[370488853,1752043856811,-151.0,0.000249,7]
[370488854,1752043856820,-2159.643784,0.000249,7]
[370488855,1752043856829,-2159.643784,0.000249,7]
[370488856,1752043856838,-207.957301,0.000249,7]
[370488857,1752043856847,-397.731259,0.000249,7]
[370488858,1752043856856,-397.731259,0.000249,7]
[370488859,1752043856865,-151.0,0.000249,7]
[370488860,1752043856874,-151.0,0.000249,7]
[370488861,1752043856883,-151.0,0.000249,7]
[370488862,1752043856891,-151.0,0.000249,7]
[370488863,1752043856901,-209.63948,0.000249,7]
[370488864,1752043856910,-140263.74903068,0.000249,2]
[370488865,1752043856923,-1373.74650475,0.000249,2]
[370488866,1752043856934,-330.85826451,0.000249,2]
[370488871,1752043968464,-10000.0,0.00019073,2]
[370488877,1752044025533,299.973117,0.00013699,2]
[370488879,1752044061074,433.2731831,0.00027397,120]
[370488889,1752044370326,24900.0,0.00018097,2]
[370488893,1752044391644,158.4270981,0.00018097,2]
[370488954,1752045038826,-253.79404431,0.00018872,2]
[370488956,1752045038836,-390.17391335,0.000189,2]
[370488958,1752045038846,-300.0,0.00018972,2]
[370488961,1752045038860,-473.0,0.00018972,2]
[370488963,1752045038870,-3264.44848119,0.00018973,2]
[370488964,1752045038879,-1655.29929988,0.00018973,2]
[370488966,1752045038889,-1275.48,0.00019063,3]
[370488969,1752045038900,-637.74,0.00019063,3]
[370488970,1752045038909,-318.87,0.00019063,3]
[370488972,1752045038918,-159.44,0.00019063,3]
[370488974,1752045038928,-478.33,0.00019063,3]
[370488975,1752045038937,-1655.29929987,0.00019068,2]
[370488976,1752045038947,-500.0,0.00019072,2]
[370488977,1752045038956,-253.54168653,0.00019072,2]
[370488978,1752045038966,-321.71057296,0.00019072,2]
[370488979,1752045038979,-360000.0,0.00019073,2]
[370488980,1752045038991,-151.83273189,0.00019073,2]
[370488981,1752045039001,-1655.29929987,0.00019163,2]
[370488982,1752045039011,-500.0,0.00019173,2]
[370488983,1752045039020,-500.0,0.00019173,2]
[370488984,1752045039030,-500.0,0.00019173,2]
[370488985,1752045039040,-502.40999338,0.00019173,2]
[370488986,1752045039050,-347.54270452,0.00019173,2]
[370488987,1752045039059,-618.91007682,0.00019173,2]
[370488988,1752045039068,-503.58664453,0.00019173,2]
[370488989,1752045039077,-500.0,0.00019173,2]
[370488990,1752045039086,-500.56421448,0.00019173,2]
[370488991,1752045039096,-500.0,0.00019173,2]
[370488992,1752045039105,-500.0,0.00019173,2]
[370488993,1752045039115,-500.0,0.00019173,2]
[370488994,1752045039124,-500.81818195,0.00019173,2]
[370488995,1752045039134,-500.0,0.00019173,2]
[370488996,1752045039143,-500.71987847,0.00019173,2]
[370488997,1752045039152,-500.0,0.00019173,2]
[370488998,1752045039161,-441.55023707,0.00019173,2]
[370488999,1752045039170,-500.0,0.00019173,2]
[370489000,1752045039179,-477.86250968,0.00019173,2]
[370489001,1752045039188,-392.35922314,0.00019177,2]
[370489002,1752045039197,-500.0,0.00019177,2]
[370489003,1752045039206,-500.0,0.00019177,2]
[370489004,1752045039215,-500.0,0.00019177,2]
[370489005,1752045039225,-500.0,0.00019177,2]
[370489006,1752045039234,-500.0,0.00019177,2]
[370489007,1752045039243,-500.0,0.00019177,2]
[370489008,1752045039254,-500.0,0.00019177,2]
[370489009,1752045039263,-500.0,0.00019177,2]
[370489010,1752045039273,-434.14438322,0.00019177,2]
[370489011,1752045039282,-500.0,0.00019177,2]
[370489012,1752045039291,-500.0,0.00019177,2]
[370489013,1752045039300,-453.90106825,0.00019177,2]
[370489014,1752045039310,-463.00299649,0.00019178,2]
[370489015,1752045039319,-460.0,0.00019178,2]
[370489016,1752045039329,-460.0,0.00019178,2]
[370489017,1752045039339,-460.88039546,0.00019178,2]
[370489018,1752045039349,-460.0,0.00019178,2]
[370489020,1752045039359,-460.0,0.00019178,2]
[370489022,1752045039368,-460.0,0.00019178,2]
[370489024,1752045039377,-564.32460795,0.00019178,2]
[370489026,1752045039387,-346.63656173,0.00019178,2]
[370489028,1752045039396,-455.31793739,0.00019178,2]
[370489030,1752045039406,-460.0,0.00019178,2]
[370489032,1752045039415,-460.0,0.00019178,2]
[370489034,1752045039425,-460.0,0.00019178,2]
[370489036,1752045039434,-460.0,0.00019178,2]
[370489038,1752045039444,-460.0,0.00019178,2]
[370489040,1752045039453,-460.0,0.00019178,2]
[370489042,1752045039463,-460.0,0.00019178,2]
[370489044,1752045039472,-461.05550761,0.00019178,2]
[370489046,1752045039482,-424.24915741,0.00019178,2]
[370489048,1752045039491,-576.07546185,0.00019178,2]
[370489050,1752045039500,-460.74437085,0.00019178,2]
[370489052,1752045039510,-308.14577533,0.00019178,2]
[370489054,1752045039519,-460.0,0.00019178,2]
[370489056,1752045039529,-458.3908032,0.00019178,2]
[370489058,1752045039539,-460.0,0.00019178,2]
[370489060,1752045039549,-460.0,0.00019178,2]
[370489062,1752045039559,-460.80517486,0.00019178,2]
[370489064,1752045039569,-461.22190882,0.00019178,2]
[370489066,1752045039578,-460.0,0.00019178,2]
[370489068,1752045039588,-460.0,0.00019178,2]
[370489070,1752045039598,-460.0,0.00019178,2]
[370489072,1752045039608,-460.0,0.00019178,2]
[370489074,1752045039617,-460.0,0.00019178,2]
[370489076,1752045039627,-461.25940752,0.00019178,2]
[370489078,1752045039638,-460.0,0.00019178,2]
[370489080,1752045039648,-521.89529012,0.00019178,2]
[370489082,1752045039658,-460.0,0.00019178,2]
[370489084,1752045039667,-460.0,0.00019178,2]
[370489086,1752045039676,-460.0,0.00019178,2]
[370489088,1752045039686,-460.0,0.00019178,2]
[370489090,1752045039695,-460.0,0.00019178,2]
[370489092,1752045039705,-460.0,0.00019178,2]
[370489094,1752045039714,-460.0,0.00019178,2]
[370489096,1752045039725,-460.0,0.00019178,2]
[370489098,1752045039735,-460.0,0.00019178,2]
[370489100,1752045039744,-460.0,0.00019178,2]
[370489102,1752045039754,-460.0,0.00019178,2]
[370489104,1752045039764,-460.0,0.00019178,2]
[370489106,1752045039773,-460.0,0.00019178,2]
[370489108,1752045039783,-460.0,0.00019178,2]
[370489122,1752045039909,-460.0,0.00019178,2]
[370489124,1752045039920,-460.0,0.00019178,2]
[370489126,1752045039930,-460.0,0.00019178,2]
[370489128,1752045039939,-460.0,0.00019178,2]
[370489130,1752045039949,-460.0,0.00019178,2]
[370489132,1752045039959,-460.0,0.00019178,2]
[370489134,1752045039972,-460.58875648,0.00019178,2]
[370489136,1752045039982,-460.0,0.00019178,2]
[370489138,1752045039992,-461.90029699,0.00019178,2]
[370489140,1752045040002,-523.18617986,0.00019178,2]
[370489142,1752045040011,-460.0,0.00019178,2]
[370489144,1752045040021,-1000.0,0.00019178,2]
[370489146,1752045040031,-460.0,0.00019178,2]
[370489148,1752045040040,-460.0,0.00019178,2]
[370489150,1752045040050,-460.0,0.00019178,2]
[370489152,1752045040061,-460.0,0.00019178,2]
[370489154,1752045040071,-460.0,0.00019178,2]
[370489156,1752045040080,-460.0,0.00019178,2]
[370489158,1752045040090,-460.0,0.00019178,2]
[370489160,1752045040100,-462.25704726,0.00019178,2]
[370489162,1752045040109,-460.0,0.00019178,2]
[370489164,1752045040119,-460.0,0.00019178,2]
[370489166,1752045040129,-460.0,0.00019178,2]
[370489168,1752045040139,-271.77689709,0.00019178,2]
[370489170,1752045040148,-461.39285426,0.00019178,2]
[370489173,1752045040159,-460.0,0.00019178,2]
[370489175,1752045040168,-460.0,0.00019178,2]
[370489177,1752045040177,-460.0,0.00019178,2]
[370489179,1752045040187,-460.0,0.00019178,2]
[370489181,1752045040196,-576.23651832,0.00019178,2]
[370489183,1752045040205,-460.0,0.00019178,2]
[370489185,1752045040215,-460.0,0.00019178,2]
[370489187,1752045040224,-460.0,0.00019178,2]
[370489189,1752045040234,-460.0,0.00019178,2]
[370489191,1752045040244,-460.0,0.00019178,2]
[370489193,1752045040253,-460.0,0.00019178,2]
[370489194,1752045040262,-500.0,0.00019178,2]
[370489197,1752045040273,-292.4548863,0.00019178,2]
[370489199,1752045040282,-460.0,0.00019178,2]
[370489201,1752045040292,-460.0,0.00019178,2]
[370489203,1752045040302,-460.0,0.00019178,2]
[370489205,1752045040312,-461.0122167,0.00019178,2]
[370489207,1752045040321,-460.0,0.00019178,2]
[370489209,1752045040331,-460.0,0.00019178,2]
[370489210,1752045040340,-460.0,0.00019178,2]
[370489212,1752045040350,-460.0,0.00019178,2]
[370489214,1752045040359,-460.0,0.00019178,2]
[370489216,1752045040369,-460.0,0.00019178,2]
[370489218,1752045040378,-460.0,0.00019178,2]
[370489220,1752045040388,-460.0,0.00019178,2]
[370489222,1752045040397,-460.0,0.00019178,2]
[370489224,1752045040406,-460.0,0.00019178,2]
[370489226,1752045040416,-460.0,0.00019178,2]
[370489228,1752045040425,-460.0,0.00019178,2]
[370489230,1752045040434,-460.0,0.00019178,2]
[370489232,1752045040444,-460.0,0.00019178,2]
[370489234,1752045040453,-460.0,0.00019178,2]
[370489236,1752045040465,-460.0,0.00019178,2]
[370489238,1752045040474,-460.0,0.00019178,2]
[370489240,1752045040484,-199.24182667,0.00019178,2]
[370489243,1752045040494,-521.74760961,0.00019178,2]
[370489244,1752045040504,-460.0,0.00019178,2]
[370489246,1752045040513,-461.55853342,0.00019178,2]
[370489248,1752045040523,-460.0,0.00019178,2]
[370489250,1752045040532,-500.0,0.00019178,2]
[370489252,1752045040541,-500.0,0.00019178,2]
[370489254,1752045040551,-195.59045641,0.00019178,2]
[370489256,1752045040561,-460.0,0.00019178,2]
[370489258,1752045040570,-152.98294186,0.00019178,2]
[370489260,1752045040580,-460.0,0.00019178,2]
[370489262,1752045040589,-460.0,0.00019178,2]
[370489264,1752045040599,-460.0,0.00019178,2]
[370489266,1752045040609,-460.0,0.00019178,2]
[370489268,1752045040618,-460.0,0.00019178,2]
[370489270,1752045040627,-460.0,0.00019178,2]
[370489272,1752045040637,-460.0,0.00019178,2]
[370489274,1752045040646,-460.0,0.00019178,2]